Cogmind - Beta 9.1 @@@ ROGUE MODE // 2019.11.03 @ 05:54:07 Player: MrPainting Result: Self-destructed Performance ------------- Evolutions (1) 500 Regions Visited (4) 800 Robots Destroyed (42) 210 Value Destroyed (880) 880 Prototype IDs (4) 80 Alien Tech Used (0) 0 Bonus (-97) -97 TOTAL SCORE: 2373 Bonus ------- High Alert Combat Kills 19 Follower Combat Kills 40 Friendly Fire -156 Cogmind --------- Core Integrity 205/400 Matter 19/300 Energy 100/100 System Corruption 0% Temperature Cool (0) Location -9/Storage Parts ------- Power (1) Propulsion (3) Utility (3) Cooling System Large Storage Unit Weapon (2) Mini Grenade Launcher Inventory (10) Improved Ion Engine Hover Unit Improved Hover Unit Small Storage Unit Large Matter Pod (150) Weapon Shielding High-powered Tractor Beam Improved Medium Laser Improved Medium Laser Improved Assault Rifle Peak State ------------ Power Improved Ion Engine Propulsion Improved Treads Improved Treads Aluminum Leg Utility Improved Heat Sink Large Storage Unit Light Armor Plating Weapon Improved Medium Laser Improved Assault Rifle Inventory Improved Ion Engine Hover Unit Improved Hover Unit Small Storage Unit Large Matter Pod Weapon Shielding High-powered Tractor Beam Improved Medium Laser Mini Grenade Launcher Mini Grenade Launcher [Rating: 19] Favorites ----------- Power Improved Ion Engine Engine Improved Ion Engine Propulsion Aluminum Leg Treads Improved Treads Leg Aluminum Leg Hover Unit Hover Unit Utility Small Storage Unit Device Improved Heat Sink Storage Small Storage Unit Protection Weapon Shielding Weapon Particle Cannon Energy Gun EM Pulse Gun Energy Cannon Particle Cannon Ballistic Gun Light Assault Rifle Launcher Mini Grenade Launcher Build | -11 -10 -10 -9 -9 ------- Run | Scr Mat Min Mat Sto Slots Evolved 2 | . . . 2 . Power . | . . . . . Propulsion 1 | . . . 1 . Utility 1 | . . . 1 . Weapon . | . . . . . Parts Attached 36 | 2 14 4 15 1 Power 3 | . 2 1 . . Engine 3 | . 2 1 . . Core . | . . . . . Reactor . | . . . . . Propulsion 8 | . 2 1 5 . Treads 4 | . . . 4 . Leg 3 | . 2 1 . . Wheel . | . . . . . Hover 1 | . . . 1 . Flight . | . . . . . Utility 8 | . 3 1 3 1 Device 3 | . 1 . 1 1 Storage 3 | . 1 1 1 . Processor . | . . . . . Hackware . | . . . . . Protection 2 | . 1 . 1 . Artifact . | . . . . . Weapon 17 | 2 7 1 7 . Energy Gun 4 | 1 1 . 2 . Energy Cannon 5 | . 4 . 1 . Ballistic Gun 4 | 1 1 . 2 . Ballistic Cannon . | . . . . . Launcher 4 | . 1 1 2 . Special Weapon . | . . . . . Impact Weapon . | . . . . . Slashing Weapon . | . . . . . Piercing Weapon . | . . . . . Special Melee Weapon . | . . . . . Unidentified Prototypes 2 | . . . 2 . Parts Lost 7 | . . . 2 5 Power 1 | . . . . 1 Propulsion 3 | . . . . 3 Utility 2 | . . . 2 . Weapon 1 | . . . . 1 Highest Loss Streak 5 | . . . 2 5 Average Slot Usage (%) 92 | . 91 100 90 83 Engine 12 | . 13 14 11 10 Treads 4 | . . . 4 21 Leg 22 | . 26 28 19 10 Device 5 | . 1 . 10 8 Storage 12 | . 13 14 11 11 Protection 9 | . 6 14 10 . Energy Gun 1 | . 4 . 1 . Energy Cannon 13 | . 14 14 16 . Ballistic Gun 2 | . 8 . 2 . Launcher 7 | . . 14 1 22 Naked Turns . | . . . . . Heaviest Build 35 | 3 20 21 35 27 Greatest Support 46 | 3 20 20 46 46 Greatest Overweight (x) 1 | . . 1 1 . Average Overweight (x) . | . . . . . Largest Inventory Capacity 10 | 4 6 8 10 10 Average Capacity 7 | 4 5 6 9 10 Most Carried 10 | 4 6 8 10 10 Average Carried 7 | 2 5 6 9 10 Final Capacity 10 | 4 6 8 10 10 Final Carried 10 | 4 6 8 10 10 Class Distribution -------------------- 92% | Mutant 7% | Scavenger-Mutant Dominant Class ---------------- Mutant | -10/Materials Mutant | -10/Mines Mutant | -9/Materials Mutant | -9/Storage Resources | -11 -10 -10 -9 -9 ----------- Run | Scr Mat Min Mat Sto Matter Collected 805 | 177 178 115 292 43 Remotely . | . . . . . Salvage Created 713 | . 78 76 294 265 Parts 70 | . 15 9 20 26 Haulers Intercepted 2 | . . . 1 1 Recyclers Shooed 1 | . . . . 1 Parts Field Recycled . | . . . . . Retrieved Matter . | . . . . . Parts Self-Destructed . | . . . . . Prevented . | . . . . . Kills | -11 -10 -10 -9 -9 ------- Run | Scr Mat Min Mat Sto Combat Hostiles Destroyed 29 | . 3 4 9 13 Guns 1 | . . . 1 . Cannons 2 | . . 1 1 . AOE 26 | . 3 3 7 13 Classes Destroyed 10 | . 3 1 4 2 Worker 4 | . . . 1 3 Builder 2 | . 1 . . 1 Tunneler 1 | . . . 1 . Hauler 2 | . . . 1 1 Operator 1 | . . . . 1 Watcher 2 | . 2 . . . Swarmer 12 | . 3 2 3 4 Grunt 14 | . . 3 4 7 Duelist 1 | . . . . 1 Sentry 3 | . . . 2 1 Best Kill Streak 9 | . 4 2 4 9 Combat Bots Only 6 | . 3 2 4 6 Max Kills in Single Turn 5 | . 3 2 3 5 Gunslinging . | . . . . . Exploded 4 | . 3 2 3 4 Melee . | . . . . . Uniques/NPCs Destroyed . | . . . . . Combat | -11 -10 -10 -9 -9 -------- Run | Scr Mat Min Mat Sto Damage Taken 1317 | . 36 137 579 565 Core 216 | . 14 7 95 100 Absorbed by Shields . | . . . . . Core Remaining (%) 95 | 100 . 91 . . Volleys Fired 46 | . 6 6 22 12 Largest 2 | . 2 2 2 2 Hottest 136 | . 136 98 136 60 Shots Fired 91 | . 11 12 44 24 Gun 16 | . 2 . 14 . Cannon 36 | . 8 6 22 . Launcher 39 | . 1 6 8 24 Special . | . . . . . Kinetic 7 | . . . 7 . Thermal 43 | . 8 6 29 . Explosive 39 | . 1 6 8 24 Electromagnetic 2 | . 2 . . . Robot Hit Streak 17 | . 3 4 17 7 Robot Miss Streak 4 | . 1 4 4 1 Penetration Max . | . . . . . Secondary Targets . | . . . . . Shots Hit Robots 49 | . 6 4 30 9 Core Hits 59 | . 6 10 14 29 Critical Hits . | . . . . . Critical Kills . | . . . . . Critical Parts Destroyed . | . . . . . Melee Attacks . | . . . . . Impact . | . . . . . Slashing . | . . . . . Piercing . | . . . . . Sneak Attacks . | . . . . . Combat Hostiles . | . . . . . Follow-up Attacks . | . . . . . Damage Inflicted 3148 | . 366 477 999 1306 Guns 193 | . 24 . 169 . Cannons 447 | . 97 41 309 . Explosions 2508 | . 245 436 521 1306 Melee . | . . . . . Ramming . | . . . . . Kinetic 101 | . . . 101 . Thermal 583 | . 165 41 377 . Explosive 2440 | . 177 436 521 1306 Electromagnetic 24 | . 24 . . . Impact . | . . . . . Slashing . | . . . . . Piercing . | . . . . . Highest Corruption . | . . . . . Average Corruption . | . . . . . Corruption Purged . | . . . . . Overload Shots . | . . . . . Overflow Damage 127 | . . 16 45 66 Projectiles 12 | . . . 12 . Explosions 115 | . . 16 33 66 Melee . | . . . . . Knockbacks . | . . . . . Impact . | . . . . . Kinetic . | . . . . . Secondary . | . . . . . Self-Inflicted Damage 380 | . . 43 109 228 Shots 15 | . . 2 5 8 Rammed . | . . . . . Targets Rammed . | . . . . . Kicked . | . . . . . Crushed . | . . . . . Highest Temperature 395 | . 156 147 395 . Average Temperature 87 | . 58 58 117 . Received Heat Transfer 240 | . . 30 114 96 Effects 2 | . . . 2 . Interference 2 | . . . 2 . Siege Activations . | . . . . . Robots Corrupted . | . . . . . Combat Hostiles . | . . . . . Parts Fried . | . . . . . Impact Corruptions . | . . . . . Robots Melted . | . . . . . Combat Hostiles . | . . . . . Parts Melted 2 | . . . 2 . Heat Transferred 1012 | . 235 74 703 . Parts Sabotaged . | . . . . . Parts Stolen . | . . . . . Parts Stripped . | . . . . . Power Chain Reactions . | . . . . . Missiles Intercepted . | . . . . . Alert | -11 -10 -10 -9 -9 ------- Run | Scr Mat Min Mat Sto Peak Influence 442 | . 162 125 211 442 Average Influence 54 | . 47 45 45 122 Maximum Alert Level 2 | . . . 1 2 Low Security (%) 96 | . . . . . Level 1 3 | . . . . . Level 2 . | . . . . . Level 3 . | . . . . . Level 4 . | . . . . . Level 5 . | . . . . . High Security . | . . . . . Max Security . | . . . . . Squads Dispatched 2 | . . . 1 1 Investigation 2 | . . . 1 1 Extermination . | . . . . . Reinforcement . | . . . . . Assault . | . . . . . Garrison . | . . . . . Intercept . | . . . . . Construction Impeded . | . . . . . Haulers Reinforced . | . . . . . Stealth | -11 -10 -10 -9 -9 --------- Run | Scr Mat Min Mat Sto Distress Signals 3 | . . . 3 . Communications Jammed . | . . . . . Distress Signals . | . . . . . Times Spotted 45 | . 7 5 14 19 Peak Tracking Total 8 | . 3 3 4 8 Tactical Retreats . | . . . . . Traps | -11 -10 -10 -9 -9 ------- Run | Scr Mat Min Mat Sto Traps Triggered . | . . . . . Indirectly . | . . . . . Trap Hack Attempts . | . . . . . Triggered . | . . . . . Disarmed . | . . . . . Reprogrammed . | . . . . . Reused . | . . . . . Traps Extracted . | . . . . . Installed . | . . . . . Triggered . | . . . . . Machines | -11 -10 -10 -9 -9 ---------- Run | Scr Mat Min Mat Sto Machines Disabled 5 | . 1 . 1 3 Max in Single Turn 3 | . 1 . 1 3 Machines Sabotaged . | . . . . . Garrisons Compromised . | . . . . . Overloaded Fab Kills . | . . . . . Fab Network Shutdowns . | . . . . . Hacking | -11 -10 -10 -9 -9 --------- Run | Scr Mat Min Mat Sto Machines Accessed 10 | . 5 . 4 1 Terminals 8 | . 3 . 4 1 Fabricators . | . . . . . Repair Stations . | . . . . . Recycling Units 2 | . 2 . . . Scanalyzers . | . . . . . Garrison Access . | . . . . . Total Hacks 30 | . 11 . 17 2 Successful 18 | . 6 . 12 . Failed 12 | . 5 . 5 2 Catastrophic 2 | . . . 1 1 Database Lockouts . | . . . . . Manual 15 | . 7 . 8 . Terminals 27 | . 8 . 17 2 Fabricators . | . . . . . Repair Stations . | . . . . . Recycling Units 3 | . 3 . . . Scanalyzers . | . . . . . Garrison Access . | . . . . . Terminal Hacks 8 | . 1 . 7 . Prototype ID Bank 1 | . . . 1 . Level Access Points 1 | . . . 1 . Branch Access Points 1 | . . . 1 . Emergency Access Points 1 | . 1 . . . Terminal Index 1 | . . . 1 . Alert Level 1 | . . . 1 . Transport Status 1 | . . . 1 . Zone Layout 1 | . . . 1 . Fabricator Hacks . | . . . . . Repair Station Hacks . | . . . . . Recycling Unit Hacks 2 | . 2 . . . Retrieve Components 2 | . 2 . . . Scanalyzer . | . . . . . Garrison Access Hacks . | . . . . . Unauthorized Hacks 19 | . 7 . 12 . Terminals 8 | . 3 . 5 . Track 2 | . . . 2 . Botnet 6 | . 3 . 3 . Fabricators . | . . . . . Repair Stations . | . . . . . Recycling Units . | . . . . . Scanalyzers . | . . . . . Garrison Access . | . . . . . Data Cores Recovered . | . . . . . Used . | . . . . . Hacking Detections 8 | . 3 . 4 1 Full Trace Events 2 | . . . 1 1 Feedback Events . | . . . . . Feedback Blocked . | . . . . . Robot Schematics Acquired . | . . . . . Robots Built . | . . . . . Matter . | . . . . . Time . | . . . . . Total Robot Build Rating . | . . . . . Part Schematics Acquired . | . . . . . Parts Built . | . . . . . Matter . | . . . . . Time . | . . . . . Total Part Build Rating . | . . . . . Parts Repaired . | . . . . . Time . | . . . . . Parts Recycled . | . . . . . Recycled Matter . | . . . . . Retrieved Matter . | . . . . . Retrieved Components 2 | . 2 . . . Parts Scanalyzed . | . . . . . Part Schematics Acquired . | . . . . . Parts Damaged . | . . . . . Bothacking | -11 -10 -10 -9 -9 ------------ Run | Scr Mat Min Mat Sto Used RIF Installer . | . . . . . Robots Hacked . | . . . . . Non-combat . | . . . . . Combat . | . . . . . Robot Hacks Applied . | . . . . . Relay Couplers Released . | . . . . . Robots Rewired . | . . . . . Allies Hacked . | . . . . . Hacks Repelled . | . . . . . Allies | -11 -10 -10 -9 -9 -------- Run | Scr Mat Min Mat Sto Total Allies 3 | . . 3 . . Largest Group 3 | . . 3 1 . Highest-Rated Group 40 | . . 40 16 . Highest-Rated Ally 16 | . . 16 16 . Total Orders . | . . . . . Ally Attacks 21 | . . 1 20 . Total Damage 192 | . . 13 179 . Kills 4 | . . 1 3 . Allies Corrupted . | . . . . . Allies Melted . | . . . . . Intel | -11 -10 -10 -9 -9 ------- Run | Scr Mat Min Mat Sto Robot Analysis Total . | . . . . . Derelict Logs Recovered 1 | . . 1 . . Drone Launches . | . . . . . Drone Recoveries . | . . . . . Exploration | -11 -10 -10 -9 -9 ------------- Run | Scr Mat Min Mat Sto Turns Passed 2163 | 31 435 617 821 259 Spaces Moved 1381 | 47 330 477 389 138 Core 87 | 47 40 . . . Treads 216 | . . . 78 138 Legs 1078 | . 290 477 311 . Wheels . | . . . . . Hover . | . . . . . Flight . | . . . . . Fastest Speed 50 | 50 50 120 150 160 Average Speed 128 | 50 111 121 152 160 Slowest Speed 180 | 50 120 150 180 160 Overloaded Moves . | . . . . . Propulsion Burnouts . | . . . . . Robots Hopped . | . . . . . Cave-ins Triggered . | . . . . . Exploration Rate (%) 45 | 3 60 99 39 25 Regions Visited 4 Branch Regions 2 Pre-discovered Areas . | . . . . . Known Exits Taken 1 | . . . 1 . Unknown Exits Taken 3 | 1 1 1 . . Scrap Searched 4 | . . 4 . . Spaces Dug 27 | . . . . 27 Terrain Destroyed 313 | . 41 62 4 206 Melee . | . . . . . Projectile . | . . . . . AOE 313 | . 41 62 4 206 Actions | -11 -10 -10 -9 -9 --------- Run | Scr Mat Min Mat Sto Total 1677 | 54 388 506 578 151 Wait 146 | . 8 10 128 . Move 1377 | 46 329 476 388 138 Hop . | . . . . . Pick Up 37 | 6 18 5 8 . Fast Attach 10 | . 2 . 7 1 Attach 9 | 2 6 . 1 . Detach 3 | . . . 3 . Swap 17 | . 6 4 7 . Drop 32 | . 13 5 14 . Fire 46 | . 6 6 22 12 Melee . | . . . . . Ram . | . . . . . Kick . | . . . . . Crush . | . . . . . Escape Stasis . | . . . . . Rewire . | . . . . . Trap . | . . . . . Miscellaneous . | . . . . . Route ------- -11/Scrapyard -10/Materials (discovered 3 exits: *Mat / [*Min x2]) -10/Mines (discovered 2 exits: *Mat x2) -9/Materials (discovered 7 exits: *Mat x3 / *Min x2 / *Sto x2) -9/Storage History --------- Turn | Location | Event 6 | -11/Scrapyard | Discovered new exit (range 15) 32 | -11/Scrapyard | Entered Materials 224 | -10/Materials | Discovered new exit (range 9) 329 | -10/Materials | Discovered new exit (range 14) 342 | -10/Materials | Build established: Mutant 440 | -10/Materials | Discovered new exit (range 13) 467 | -10/Materials | Entered Mines 529 | -10/Mines | Discovered new exit (range 10) 685 | -10/Mines | Assisted by bots powering up and referring to "LRC-V3" 750 | -10/Mines | Discovered new exit (range 12) 855 | -10/Mines | Received a Rocket Launcher from a helpful Derelict 902 | -10/Mines | Learned location of 1 exit from Materials 1084 | -10/Mines | Entered Materials 1084 | -9/Materials | Accompanied by 1 ally 1084 | -9/Materials | Evolved 2 slots: Propulsion x1, Utility x1 1085 | -9/Materials | Identified exit to Materials 1192 | -9/Materials | Discovered new exit (range 13) 1498 | -9/Materials | Identified exit to Mines 1498 | -9/Materials | Identified exit to Storage 1905 | -9/Materials | Entered Storage 2164 | -9/Storage | Self-destructed Last Messages --------------- 02158_ Imp. Treads destroyed. 02158_ Destroyed Imp. Treads. 02158_ K-01 Serf destroyed. 02158_ G-34 Mercenary destroyed. 02158_ Terminal disabled. 02158_ Y-45 Defender destroyed. 02158_ Compression Vault explodes. 02158_ Imp. Ion Engine destroyed. 02158_ U-05 Engineer lays Concrete. 02159_ K-01 Serf collects debris. 02159_ U-05 Engineer builds a Wall. 02160_ K-01 Serf collects debris. 02161_ K-01 Serf destroyed. 02161_ U-05 Engineer lays Concrete. 02162_ The unstable cave ceiling collapses. 02162_ U-05 Engineer lays Concrete. 02163_ K-01 Serf collects debris. 02163_ U-05 Engineer lays Concrete. 02163_ Mni. Grenade Launcher destroyed. 02163_ Imp. Treads destroyed. Map ----- +----------------------------------------------------+ | ?????????????????????????????????????????????????? | | ?????????????????????????????????????????????????? | | ?????????????????????????????????????????????????? | | ?????????????????????????????????????????????????? | | ?????????????????????????????????????????????????? | | ?????????????????????????????????????????????????? | | ?????????????????????????????????????????????????? | | ?????????????????????????????????????????????????? | | ?????????????????????????????????????????????????? | | ???????????????#+????????????????????????????????? | | ##????????????? ????????????????????????????????? | | "#????????????? ????????????????????????????????? | | "#????????????? ????????????????????????????????? | | "####??????#####/#########+#####?????????????????? | | #??????# # T ###???????????????? | | "" #??????# # ""#???????????????? | | "" #??????# "#???????????????? | | "" #??????# """ """ "#???????????????? | | #??????# """ """ #???????????????? | | "" #??????# """ """ % #???????????????? | | "" ######## % = #????????????????? | | "" ## # u* k #????????????????? | | ########### * ### % ?????????????????? | | #+### = u[ ###????????????????? | | ] ##???????????????? | | = =][ @ #??????????????? | | ##### ### #### % #??????????????? | | # ## # # ## # ##????????????? | | * # ###########? * Y g ??????????? | | # # # #?????? # # ## ?????????? | | # #??????#### # #????????????? | | =!## # # ##?????????# ### #????????????? | | ## # # #?????????# #??# ##????????????? | | ###### ##?????????#+#??? ????????????? | | + "??## #???????????????? ???????????? | | # "????##????????????????? ## ##Y"????????????? | | # "??????????????????????? #?##??"????????????? | | #T#??????????????????????? #??????????????????? | | ###????????????????????????#??????????????????? | | #?????????????????????????????????????????????? | | #?????????????????????????????????????????????? | | #?????????????????????????????????????????????? | | #?????????????????????????????????????????????? | | ##############????????????????????????????????? | | ???????????????????????????????? | | ???????????????????????????????? | | ???????????????????????????????? | | ##############????????????????????????????????? | | #?????????????????????????????????????????????? | | #?????????????????????????????????????????????? | +----------------------------------------------------+ Best States ------------- Heat Dissipation 50 Energy Generation 12 Energy Capacity 265 Matter Stores 300 Matter Capacity 300 Sight Range 16 Terrain Scan Density 10 ECM Strength 1 Armor Coverage 150 Weapon Shielding 33 Evasion (%) 50 Recoil Reduction 2 Item Schematics ----------------- None Robot Schematics ------------------ None Fabricated ------------ Nothing Alien Tech Used ----------------- None Achievements -------------- None Challenges ------------ None Game ------ Seed ModifiedActuatorBarrier Manual? 0 Play Time 00:25:25 Cumulative 96.5 hours Start 2019.11.03 @ 05:29:22 End 2019.11.03 @ 05:54:07 Sessions 1 Manual Loads 0 Difficulty Rogue Special Mode None Game No. 157 Rogue 157 Adventurer 0 Explorer 0 Win Type - Total 0 Types 0/0/0/0/0/0/0 Lore% 31 Gallery% 45 Achievement% 33 Wizard Run 0 Options --------- ASCII 0 Keyboard 0 Movement Mouse Keybinds 0 Fullscreen 1 Font 18/SmallcapsGlow Map View 76x50 Tactical HUD 1 Map Filters NONE Filters NONE Steam 1 RUN: 6ca9d601-0d52-4ebb-af1c-cd2984a38153